lending/lending_fUSD_20240710
["ID","MTS","AMOUNT","RATE_DAILY","PERIOD"]
[331688291,1720643434451,-869.06337299,0.00013799,2]
[331688292,1720643434461,-869.06337299,0.00013799,2]
[331688293,1720643434471,-869.06337299,0.00013799,2]
[331688294,1720643434481,-869.06337299,0.00013799,2]
[331688295,1720643434491,-200.0,0.000138,5]
[331688296,1720643434502,-869.06337299,0.00013811,2]
[331688297,1720643434862,-500.0,0.00013814,2]
[331688298,1720643434873,-500.0,0.00013814,2]
[331688299,1720643434883,-500.0,0.00013814,2]
[331688300,1720643434893,-500.0,0.00013814,2]
[331688301,1720643434903,-2317.69,0.00013814,2]
[331688302,1720643434914,-1576.79,0.00013814,2]
[331688303,1720643434924,-1000.0,0.00013832,2]
[331688304,1720643434934,-869.06337299,0.00013833,2]
[331688305,1720643434943,-613.01736691,0.00013849,2]
[331688306,1720643434953,-1224.38607,0.00013851,2]
[331688307,1720643434963,-869.06337299,0.00013856,2]
[331688308,1720643434972,-1143.59228,0.0001386,2]
[331688309,1720643434983,-592.53282116,0.00013869,2]
[331688310,1720643434992,-500.0,0.00013869,2]
[331688311,1720643435002,-500.0,0.00013869,2]
[331688312,1720643435011,-500.0,0.00013869,2]
[331688313,1720643435021,-2317.69,0.00013869,2]
[331688314,1720643435031,-1576.79,0.00013869,2]
[331688315,1720643435041,-869.06337299,0.00013878,2]
[331688316,1720643435051,-3000.0,0.00013888,2]
[331688317,1720643435060,-671.7,0.00013899,2]
[331688318,1720643435070,-269.8514326,0.00013899,2]
[331688319,1720643435080,-202.34507322,0.00013899,2]
[331688320,1720643435090,-200.0,0.000139,5]
[331688321,1720643435103,-2787.95583771,0.000139,2]
[331688322,1720643435112,-869.06337299,0.000139,2]
[331688323,1720643435121,-7786.04244743,0.000139,2]
[331688324,1720643435131,-2032.47251315,0.000139,2]
[331688325,1720643435141,-4696.92299392,0.000139,2]
[331688326,1720643435150,-500.0,0.00013924,2]
[331688327,1720643435159,-500.0,0.00013924,2]
[331688328,1720643435168,-500.0,0.00013924,2]
[331688329,1720643435178,-2317.69,0.00013924,2]
[331688330,1720643435188,-1576.79,0.00013924,2]
[331688331,1720643435199,-671.7,0.00013954,2]
[331688332,1720643435208,-500.0,0.00013978,2]
[331688333,1720643435218,-500.0,0.00013978,2]
[331688334,1720643435228,-500.0,0.00013978,2]
[331688335,1720643435238,-2317.69,0.00013978,2]
[331688336,1720643435248,-1576.79,0.00013978,2]
[331688337,1720643435259,-186.51762411,0.00013989,2]
[331688338,1720643435269,-192.58907149,0.00013989,2]
[331688339,1720643435279,-242.59992014,0.00013989,2]
[331688340,1720643435289,-155.0,0.00013989,2]
[331688341,1720643435298,-210.28152083,0.00013989,2]
[331688342,1720643435308,-366.47039512,0.00013989,2]
[331688343,1720643435318,-496.10852137,0.00013989,2]
[331688344,1720643435327,-499.999999,0.00013997,2]
[331688345,1720643435337,-602.97,0.00013997,2]
[331688346,1720643435347,-255.63531546,0.00013997,2]
[331688347,1720643435361,-1056.81,0.00013997,2]
[331688348,1720643435371,-12813.278278,0.00013998,2]
[331688349,1720643435380,-71868.0997453,0.00013998,2]
[331688350,1720643435389,-3153.1132134,0.00013998,2]
[331688351,1720643435398,-314.30647245,0.00013999,2]
[331688352,1720643435408,-173.88799368,0.00013999,2]
[331688353,1720643435418,-155.0,0.00013999,2]
[331688354,1720643435427,-294.11862641,0.00013999,2]
[331688355,1720643435436,-155.17578184,0.00013999,2]
[331688356,1720643435446,-364.6602356,0.00013999,2]
[331688357,1720643435455,-155.5023666,0.00013999,2]
[331688358,1720643435465,-259.91784709,0.00013999,2]
[331688359,1720643435474,-438.05939194,0.00013999,2]
[331688360,1720643435483,-157.03310401,0.00013999,2]
[331688361,1720643435492,-435433.87274768,0.00014,2]
[331688362,1720643435696,-1192.8949193,0.00014,2]
[331688363,1720643435708,-349.70936002,0.00014,2]
[331688364,1720643435719,-582.23596,0.00014,2]
[331688365,1720643435731,-1737.408453,0.00014,2]
[331688366,1720643435744,-668.09006719,0.00014,2]
[331688367,1720643435755,-2548.04149811,0.00014,2]
[331688368,1720643435765,-3546.95296747,0.00014,2]
[331688369,1720643435776,-1205729.26057482,0.00014,2]
[331688393,1720643438456,-1490.43650887,0.00012295,2]
[331688394,1720643438469,-354.23051344,0.00012295,2]
[331688395,1720643438481,-1664.7,0.00012295,2]
[331688396,1720643438493,-300.001004,0.00012295,2]
[331688484,1720643440419,-1732.30150554,0.00012295,2]
[331688485,1720643440432,-1117.55615244,0.00012295,2]
[331688486,1720643440444,-370.41691098,0.00012295,2]
[331688487,1720643440456,-5086.53487239,0.00012295,2]
[331688488,1720643440467,-168.42,0.00012782,2]
[331688489,1720643440477,-6248.04512761,0.00013574,2]
[331688490,1720643440603,-1228.72299205,0.00013574,2]
[331688491,1720643440614,-556.72469797,0.00013899,2]
[331688492,1720643440623,-475.71197158,0.00013899,2]
[331688493,1720643440633,-258.88603077,0.00013899,2]
[331688494,1720643440642,-251.6364854,0.00013899,2]
[331688495,1720643440653,-2974.81782223,0.00014,2]
[331688496,1720643440665,-628.76733255,0.00014,2]
[331688497,1720643440677,-2297.4020911,0.00014,2]
[331688566,1720643443466,-157.15323623,0.00013999,2]
[331688567,1720643443475,-752.82539454,0.00014,2]
[331688568,1720643443535,-702.22,0.00014,2]
[331688569,1720643443703,-861.861,0.00014,2]
[331688570,1720643443820,-1477.01686296,0.00014,2]
[331688599,1720643445657,-1388.82081271,0.00014,2]
[331688609,1720643447633,-573.8,0.00013981,2]
[331688610,1720643447645,-517.702553,0.00013981,2]
[331688611,1720643447756,-573.497447,0.00013981,2]
[331688612,1720643447766,-204184.96983583,0.00014,2]
[331688613,1720643447932,-1452.34796956,0.00014,2]
[331688617,1720643757190,205.0,9.8e-05,2]
[331688619,1720643803911,1615.40415592,0.00025,120]
[331688620,1720643805848,761.3,0.00011924,2]
[331688621,1720643813715,155.0,9.8e-05,2]
[331688622,1720643833963,210.18032515,0.00011879,2]
[331688623,1720643871858,431.26485321,0.00011199,2]
[331688625,1720643994311,397.06,0.00010296,2]
[331688626,1720644006338,-351.8691,0.00018,30]
[331688627,1720644029089,-352.22,0.00018,30]
[331688628,1720644072480,269.8514326,0.00011199,2]
[331688629,1720644100571,1160.310535,0.00011976,2]
[331688630,1720644118435,488.42688505,0.00011199,2]
[331688631,1720644148738,1682.50258177,0.00011937,2]
[331688634,1720644180202,239.64,0.00011975,2]
[331688636,1720644194802,200.0,0.00011997,2]
[331688637,1720644248063,366.05734628,0.00011199,2]
[331688638,1720644254920,500.0,0.00011199,2]
[331688639,1720644255269,620.0,0.00011199,2]
[331688640,1720644258008,500.0,0.00011199,2]
[331688641,1720644258329,559.0,0.00011199,2]
[331688642,1720644276980,23900.0,0.00011849,2]
[331688643,1720644291104,253.69470968,0.00011199,2]
[331688644,1720644334885,276.37172339,0.00011199,2]
[331688645,1720644349885,276.37172339,0.00011199,2]
[331688646,1720644395139,197.61572727,0.00011936,2]
[331688652,1720644400308,3393.16408193,0.00011199,2]
[331688653,1720644401165,197.61572727,0.00011977,2]
[331688658,1720644502606,175.9,0.0001198,2]
[331688661,1720644540051,377.2,0.00010094,2]
[331688689,1720644602025,157.97753922,0.00011917,2]
[331688690,1720644625031,369.26898689,0.00011199,2]
[331688691,1720644630027,235.89,0.00011893,2]
[331688692,1720644630573,1481.88,0.00011893,2]
[331688718,1720644631617,-600.0,0.00012013,2]
[331688719,1720644631629,-197.61572727,0.00012017,2]
[331688720,1720644631638,-171.8407981,0.00012028,2]
[331688721,1720644631651,-78.1592019,0.00012028,2]
[331688722,1720644631661,-1489.97,0.00012036,2]
[331688723,1720644631671,-150.0,0.00012037,2]
[331688724,1720644631681,-500.0,0.00012064,2]
[331688725,1720644631691,-300.0,0.00012082,2]
[331688726,1720644631700,-689.47167726,0.00012083,2]
[331688727,1720644631712,-1565.31339387,0.00012083,2]
[331688728,1720644631723,-6283.12492887,0.00012083,2]
[331688729,1720644631732,-5320.88765975,0.00012093,2]
[331688730,1720644631748,-548.34318324,0.00012093,2]
[331688731,1720644631759,-7604.27915701,0.00012093,2]
[331688732,1720644631768,-250.0,0.00012117,2]
[331688733,1720644631778,-608.54,0.00012122,2]
[331688734,1720644631787,-150.99,0.00012122,2]
[331688735,1720644631797,-500.0,0.00012122,2]
[331688736,1720644631806,-321.97,0.00012122,2]
[331688737,1720644631816,-150.99,0.00012122,2]
[331688738,1720644631825,-306.88,0.00012293,2]
[331688739,1720644631834,-906.43,0.00012293,2]
[331688740,1720644631844,-185.38,0.00012327,2]
[331688741,1720644631853,-377.2,0.00012358,2]
[331688742,1720644631863,-150.0,0.00012559,2]
[331688743,1720644631873,-22.37127197,0.00013028,2]
[331688744,1720644631884,-135.60626725,0.00013028,2]
[331688745,1720644631894,-400.0,0.00013091,2]
[331688746,1720644631904,-18811.2531298,0.00013122,2]
[331688747,1720644631917,-1770.36620858,0.00013122,2]
[331688748,1720644631928,-183826.38066162,0.00013122,2]
[331688749,1720644631939,-5000.0,0.00013128,2]
[331688750,1720644631948,-848.86,0.00013178,2]
[331688751,1720644631957,-2500.0,0.00013228,2]
[331688753,1720644631967,-420.0,0.00013262,2]
[331688755,1720644631976,-848.295,0.0001346,2]
[331688757,1720644631986,-175.9,0.00013477,2]
[331688758,1720644631995,-600.0,0.00013514,2]
[331688759,1720644632004,-1706.01053776,0.00013516,2]
[331688760,1720644632013,-21022.1544,0.0001356,2]
[331688762,1720644632023,-40837.0757,0.0001356,2]
[331688764,1720644632032,-12491.4995,0.0001356,2]
[331688766,1720644632041,-206.92832689,0.00013598,2]
[331688768,1720644632050,-312.82557144,0.00013598,2]
[331688770,1720644632060,-255.0,0.00013652,2]
[331688772,1720644632069,-16974.18425106,0.0001366,2]
[331688776,1720644632104,-269.12884661,0.0001366,2]
[331688779,1720644632116,-6160.39373051,0.0001366,2]
[331688781,1720644632132,-602.4599999,0.0001366,2]
[331688783,1720644632144,-331.9599993,0.0001366,2]
[331688786,1720644632155,-1339.18597262,0.0001366,2]
[331688788,1720644632164,-4368.4282,0.0001366,2]
[331688790,1720644632173,-24403.48930827,0.0001366,2]
[331688792,1720644632184,-9415.33628575,0.0001366,2]
[331688793,1720644632196,-909.3594811,0.0001366,2]
[331688816,1720644637495,-443.13092382,0.00013,2]
[331688823,1720644637553,-500.6964493,0.00013,2]
[331688825,1720644637568,-306.17262688,0.00013,2]
[331688826,1720644637577,-121.03156505,0.0001366,2]
[331688827,1720644637590,-1988.46091552,0.0001366,2]
[331688828,1720644637667,-738.11002,0.0001366,2]
[331688829,1720644637679,-1999.96712907,0.0001366,2]
[331688830,1720644637690,-774.06996451,0.0001366,2]
[331688831,1720644637702,-312.6138,0.0001366,2]
[331688832,1720644637714,-9395.11689208,0.0001366,2]
[331688833,1720644637778,-2392.31790448,0.0001366,2]
[331688834,1720644637837,-11709.60775064,0.0001366,2]
[331688963,1720644639600,-533.1,0.0001366,2]
[331688964,1720644639613,-578.34375556,0.0001366,2]
[331688965,1720644639665,-373.89184271,0.0001366,2]
[331688966,1720644639677,-376.955934,0.0001366,2]
[331688967,1720644639688,-397.63098387,0.0001366,2]
[331688968,1720644639700,-1150.70064965,0.0001366,2]
[331688969,1720644639722,-76489.75677284,0.0001366,2]
[331688970,1720644639781,-256.89893274,0.0001366,2]
[331688971,1720644639793,-72695.16729025,0.0001366,2]
[331688972,1720644639804,-670.7,0.0001366,2]
[331688973,1720644641246,-3200.6762738,0.0001366,2]
[331688974,1720644641304,-4608.07243216,0.0001366,2]
[331688975,1720644641317,-19508.62411595,0.0001366,2]
[331688976,1720644641326,-217.06384299,0.00013698,2]
[331688977,1720644641335,-8934.78,0.00013698,2]
[331688978,1720644641345,-500.0,0.00013698,2]
[331688979,1720644641355,-500.0,0.00013698,2]
[331688980,1720644641365,-305.80704156,0.00013698,2]
[331688981,1720644641374,-451.7818243,0.00013698,2]
[331688982,1720644641383,-4152.54,0.00013698,2]
[331688983,1720644641393,-1248.29,0.00013698,2]
[331688984,1720644641403,-6192.78687506,0.00013698,2]
[331688985,1720644641413,-166.99,0.00013699,2]
[331688986,1720644641423,-855.81,0.00013699,2]
[331688987,1720644641433,-212.7818,0.00013726,2]
[331688988,1720644641444,-1631.04293426,0.00013736,2]
[331688989,1720644641454,-1055.92728241,0.00013736,2]
[331688990,1720644641464,-227.29136124,0.00013736,2]
[331688991,1720644641473,-8934.78,0.00013753,2]
[331688992,1720644641482,-500.0,0.00013753,2]
[331688993,1720644641492,-500.0,0.00013753,2]
[331688994,1720644641502,-4152.54,0.00013753,2]
[331688995,1720644641511,-1248.29,0.00013753,2]
[331688996,1720644641521,-577.85,0.00013759,2]
[331688997,1720644641531,-1012.78,0.00013759,2]
[331688998,1720644641540,-339.04170701,0.00013759,2]
[331688999,1720644641549,-615.73,0.00013759,2]
[331689000,1720644641558,-8934.78,0.00013808,2]
[331689001,1720644641568,-500.0,0.00013808,2]
[331689002,1720644641577,-500.0,0.00013808,2]
[331689003,1720644641587,-4152.54,0.00013808,2]
[331689004,1720644641597,-1248.29,0.00013808,2]
[331689006,1720644641606,-577.85,0.00013814,2]
[331689008,1720644641615,-1012.78,0.00013814,2]
[331689010,1720644641624,-615.73,0.00013814,2]
[331689013,1720644641633,-8934.78,0.00013863,2]
[331689014,1720644641643,-500.0,0.00013863,2]
[331689017,1720644641654,-500.0,0.00013863,2]
[331689018,1720644641663,-4152.54,0.00013863,2]
[331689020,1720644641672,-1248.29,0.00013863,2]
[331689022,1720644641682,-185.38,0.00013868,2]
[331689024,1720644641691,-577.85,0.00013869,2]
[331689027,1720644641700,-1012.78,0.00013869,2]
[331689030,1720644641709,-615.73,0.00013869,2]
[331689033,1720644641719,-7142.84981125,0.0001388,2]
[331689035,1720644641728,-3000.0,0.00013888,2]
[331689038,1720644641737,-518.69562264,0.00013899,2]
[331689040,1720644641747,-328.50066625,0.00013899,2]
[331689042,1720644641756,-475.9304479,0.00013899,2]
[331689044,1720644641766,-155.0,0.00013899,2]
[331689046,1720644641775,-208.73731951,0.00013899,2]
[331689048,1720644641784,-5606.142,0.000139,2]
[331689050,1720644641793,-4054.072,0.000139,2]
[331689052,1720644641803,-1000.0,0.000139,2]
[331689054,1720644641813,-8934.78,0.00013917,2]
[331689056,1720644641822,-500.0,0.00013917,2]
[331689058,1720644641831,-500.0,0.00013917,2]
[331689060,1720644641840,-4152.54,0.00013917,2]
[331689062,1720644641850,-1248.29,0.00013917,2]
[331689064,1720644641859,-577.85,0.00013924,2]
[331689066,1720644641868,-123.52826501,0.00013924,2]
[331689068,1720644641880,-889.25173499,0.00013924,2]
[331689070,1720644641889,-615.73,0.00013924,2]
[331689072,1720644641899,-8934.78,0.00013972,2]
[331689074,1720644641908,-500.0,0.00013972,2]
[331689076,1720644641917,-471.74211022,0.00013972,2]
[331689078,1720644641927,-76.16951717,0.00013972,2]
[331689080,1720644641938,-4076.37048283,0.00013972,2]
[331689082,1720644641947,-1248.29,0.00013972,2]
[331689084,1720644641956,-577.85,0.00013978,2]
[331689086,1720644641966,-1012.78,0.00013978,2]
[331689088,1720644641975,-615.73,0.00013978,2]
[331689090,1720644641985,-242.59992014,0.00013989,2]
[331689092,1720644641995,-157.15323622,0.00013999,2]
[331689094,1720644642004,-155.07120481,0.00013999,2]
[331689096,1720644642014,-305.78334679,0.00013999,2]
[331689098,1720644642023,-155.0,0.00013999,2]
[331689100,1720644642033,-574.0,0.00013999,2]
[331689102,1720644642042,-76446.51173012,0.00014,2]
[331689104,1720644642055,-63502.53377146,0.00014,2]
[331689107,1720644642065,-1697.27162398,0.00014,2]
[331689109,1720644642076,-342.30435035,0.00014,2]
[331689111,1720644642087,-1677.4,0.00014,2]
[331689113,1720644642099,-3755.125,0.00014,2]
[331689318,1720644643613,-271.26559914,0.00014,2]
[331689320,1720644643625,-3227.78121586,0.00014,2]
[331689323,1720644643636,-9920.5,0.00014,2]
[331689325,1720644643649,-3674.45,0.00014,2]
[331689327,1720644643660,-9868.98114784,0.00014,2]
[331689329,1720644643672,-3870.18624551,0.00014,2]
[331689331,1720644643684,-500.0,0.00014,2]
[331689337,1720644643722,-238.27870455,0.00013999,2]
[331689339,1720644643731,-49031.12058071,0.00014,2]
[331689614,1720644646504,-655.96346595,0.00014,2]
[331689615,1720644646516,-301.88553806,0.00014,2]
[331689616,1720644646552,-8438.6015288,0.00014,2]
[331689617,1720644646564,-5557.37127244,0.00014,2]
[331689618,1720644646647,-1631.04293426,0.00013516,2]
[331689619,1720644646657,-285.77485777,0.00014,2]
[331689624,1720645011772,500.0,0.00027,120]
[331689625,1720645032066,183.23,0.0001198,2]
[331689626,1720645062628,151.071105,0.00025,63]
[331689627,1720645066864,151.071105,0.00025,64]
[331689628,1720645069968,151.071105,0.00025,65]
[331689629,1720645072955,151.071105,0.00025,66]
[331689630,1720645083534,151.071105,0.00025,70]
[331689631,1720645086773,151.071105,0.00025,71]
[331689632,1720645089715,151.071105,0.00025,72]
[331689633,1720645093882,151.071105,0.00025,73]
[331689634,1720645105851,151.071105,0.00025,77]
[331689635,1720645151621,167.071105,0.00025,78]
[331689636,1720645161431,355.65,0.00010772,2]
[331689637,1720645407519,155.0,0.00011199,2]
[331689638,1720645452557,277.28332223,0.00011199,2]
[331689639,1720645483734,155.0,0.00011199,2]
[331689640,1720645493709,208.85960575,0.00011199,2]
[331689641,1720645525067,369.09687393,0.00011199,2]
[331689644,1720645541740,3408.44474736,0.00011951,2]
[331689645,1720645544497,571.4238566,0.00011199,2]
[331689646,1720645564328,155.0,0.00011199,2]
[331689649,1720645566322,423.248988,0.00011952,2]
[331689655,1720645584001,155.0,0.00011199,2]
[331689659,1720645597412,10000.0,0.00027,120]
[331689660,1720645611149,227.29136124,0.00011199,2]
[331689661,1720645625446,263.75418329,0.00011199,2]
[331689662,1720645642012,10000.0,0.00025,60]
[331689663,1720645662099,2272.29649824,0.0001195,2]
[331689676,1720645767788,155.0,0.0001195,2]
[331689677,1720645782434,1514.86433216,0.0001195,2]
[331689678,1720645790296,6000.0,0.00011199,2]
[331689679,1720645799052,1150.03516476,0.00011913,2]
[331689680,1720645821689,357.16,0.00010674,2]
[331689687,1720645831891,-155.69771863,0.00012013,2]
[331689688,1720645831901,-269.01275879,0.0001205,2]
[331689689,1720645831913,-547.98724121,0.0001205,2]
[331689690,1720645831922,-1514.86433216,0.00012215,2]
[331689691,1720645831931,-155.0,0.00012273,2]
[331689692,1720645831940,-155.0,0.00012273,2]
[331689693,1720645831950,-1013.16514783,0.00012302,2]
[331689694,1720645831959,-1514.86433216,0.0001248,2]
[331689695,1720645831969,-5968.69,0.00012586,2]
[331689696,1720645831979,-250.0,0.00012595,2]
[331689697,1720645831988,-250.0,0.00012639,2]
[331689698,1720645831998,-184.84,0.0001266,2]
[331689699,1720645832007,-360.0,0.00012764,2]
[331689700,1720645832017,-357.16,0.00012938,2]
[331689701,1720645832026,-640.0,0.00012997,2]
[331689702,1720645832037,-1409.44,0.00013,2]
[331689703,1720645832048,-200.0,0.000131,4]
[331689704,1720645832057,-208.85960575,0.00013128,2]
[331689705,1720645832067,-207.0,0.0001318,2]
[331689706,1720645832076,-500.0,0.000132,4]
[331689707,1720645832085,-150.0,0.00013227,2]
[331689708,1720645832094,-322.9314,0.00013228,2]
[331689709,1720645832103,-4070.7604,0.00013228,2]
[331689710,1720645832112,-500.0,0.00013228,2]
[331689711,1720645832121,-800.0,0.000133,4]
[331689712,1720645832130,-175.595959,0.00013351,2]
[331689713,1720645832139,-1000.0,0.000134,4]
[331689714,1720645832148,-1285.144203,0.00013472,2]
[331689715,1720645832158,-9247.64773427,0.00013472,2]
[331689716,1720645832167,-183.23,0.00013477,2]
[331689717,1720645832176,-1300.0,0.000135,4]
[331689718,1720645832185,-366.11090361,0.00013543,2]
[331689719,1720645832194,-10244.65399527,0.00013574,2]
[331689720,1720645832204,-200.0,0.000136,4]
[331689721,1720645832213,-801.78,0.00013698,2]
[331689722,1720645832223,-500.0,0.00013698,2]
[331689723,1720645832232,-166.99,0.00013699,2]
[331689724,1720645832241,-200.0,0.000137,5]
[331689726,1720645832250,-801.78,0.00013753,2]
[331689728,1720645832259,-500.0,0.00013753,2]
[331689729,1720645832268,-1665.0,0.00013795,2]
[331689730,1720645832278,-5181.0,0.00013795,2]
[331689731,1720645832287,-5816.0,0.00013795,2]
[331689732,1720645832296,-38275.0,0.00013795,2]
[331689733,1720645832305,-1200.0,0.00013795,2]
[331689734,1720645832314,-200.0,0.000138,5]
[331689735,1720645832322,-801.78,0.00013808,2]
[331689736,1720645832332,-500.0,0.00013808,2]
[331689737,1720645832341,-206.38193342,0.00013849,2]
[331689738,1720645832350,-801.78,0.00013863,2]
[331689739,1720645832359,-500.0,0.00013863,2]
[331689740,1720645832368,-3000.0,0.00013888,2]
[331689741,1720645832377,-1625.42921835,0.0001389,2]
[331689742,1720645832387,-212.502,0.00013899,2]
[331689743,1720645832396,-612.0518204,0.00013899,2]
[331689744,1720645832404,-167.07041145,0.000139,2]
[331689745,1720645832413,-7500.0,0.000139,2]
[331689746,1720645832422,-827.71330744,0.000139,2]
[331689747,1720645832432,-200.0,0.000139,5]
[331689748,1720645832441,-1086.32921629,0.000139,2]
[331689749,1720645832450,-516.68139403,0.000139,2]
[331689750,1720645832459,-312.82557141,0.000139,2]
[331689751,1720645832468,-1094.99356239,0.000139,2]
[331689752,1720645832477,-9752.48919384,0.000139,2]
[331689753,1720645832487,-801.78,0.00013917,2]
[331689754,1720645832496,-500.0,0.00013917,2]
[331689755,1720645832505,-801.78,0.00013972,2]
[331689756,1720645832514,-500.0,0.00013972,2]
[331689757,1720645832523,-691.06526812,0.00013989,2]
[331689758,1720645832532,-242.59992014,0.00013989,2]
[331689759,1720645832541,-289.31449285,0.0001399,2]
[331689760,1720645832550,-289.31449285,0.0001399,2]
[331689761,1720645832559,-289.31449285,0.0001399,2]
[331689762,1720645832568,-500.0,0.00013999,2]
[331689763,1720645832577,-335.72484928,0.00013999,2]
[331689764,1720645832586,-295.94571,0.00013999,2]
[331689765,1720645832595,-292.85694871,0.00013999,2]
[331689766,1720645832604,-484.78794435,0.00013999,2]
[331689767,1720645832614,-936.22,0.00013999,2]
[331689768,1720645832623,-500.0,0.00013999,2]
[331689769,1720645832632,-6701.09,0.00013999,2]
[331689770,1720645832641,-500.0,0.00013999,2]
[331689771,1720645832650,-3114.41,0.00013999,2]
[331689772,1720645832659,-516432.22066548,0.00014,2]
[331689778,1720645833501,-10742.25634827,0.00014,2]
[331689779,1720645833516,-1230.78807392,0.00014,2]
[331689780,1720645833530,-1577.90951174,0.00014,2]
[331689781,1720645833552,-650.84138823,0.00014,2]
[331689782,1720645833564,-16966.34573862,0.00014,2]
[331689783,1720645833577,-583.55008862,0.00014,2]
[331689784,1720645833590,-2692.48630462,0.00014,2]
[331689785,1720645833603,-394.43467792,0.00014,2]
[331689786,1720645833717,-692.42243522,0.00014,2]
[331689787,1720645833729,-1841.02372038,0.00014,2]
[331689788,1720645833742,-977.03499773,0.00014,2]
[331689789,1720645833754,-277.50880542,0.00014,2]
[331689790,1720645833766,-939.82724979,0.00014,2]
[331689791,1720645833778,-421.55839924,0.00014,2]
[331689792,1720645833790,-4464.6722884,0.00014,2]
[331689793,1720645833802,-264.63989011,0.00014,2]
[331689794,1720645833815,-599.46000008,0.00014,2]
[331689795,1720645833829,-5962.64295461,0.00014,2]
[331689796,1720645833842,-1075.9549519,0.00014,2]
[331689797,1720645833856,-504.69421276,0.00014,2]
[331689798,1720645833868,-3494.76952503,0.00014,2]
[331689799,1720645833880,-277578.84003196,0.00014,2]
[331689800,1720645833890,-890234.81367096,0.00014,2]
[331689818,1720645837712,-561.82928208,0.00013795,2]
[331689819,1720645837773,-381.83366267,0.00013795,2]
[331689820,1720645837809,-127.33705525,0.00013795,2]
[331689821,1720645837819,-224.58294475,0.00013899,2]
[331689822,1720645837837,-73.37064793,0.00013899,2]
[331689823,1720645837847,-296.90208106,0.00014,2]
[331689824,1720645837858,-589.98973099,0.00014,2]
[331689825,1720645837870,-2602.0,0.00014,2]
[331689826,1720645837905,-307.40360557,0.00014,2]
[331689827,1720645837918,-3022.71915924,0.00014,2]
[331689828,1720645837931,-43272.09208816,0.00014,2]
[331689829,1720645838075,-744.74833634,0.00014,2]
[331689830,1720645838135,-1692.27854966,0.00014,2]
[331689973,1720645839899,-1147.51503613,0.00014,2]
[331689975,1720645839912,-397.34954669,0.00014,2]
[331689977,1720645839924,-10206.6201387,0.00014,2]
[331689982,1720645839959,-11537.66284909,0.00014,2]
[331689984,1720645839971,-865.43927189,0.00014,2]
[331689987,1720645839984,-1936.62723643,0.00014,2]
[331689989,1720645839996,-2301.765,0.00014,2]
[331689992,1720645840020,-583.68941828,0.00014,2]
[331690005,1720645840134,-12829.93264601,0.00014,2]
[331690008,1720645840146,-3812.46253125,0.00014,2]
[331690091,1720645840896,-36011.6130103,0.00014,2]
[331690094,1720645840916,-529.14436966,0.00014,2]
[331690311,1720645842791,-500.0,0.00013999,2]
[331690313,1720645842800,-808.00000413,0.00014,2]
[331690316,1720645842816,-9038.88000004,0.00014,2]
[331690333,1720645842903,-674.54400006,0.00014,2]
[331690344,1720645842960,-394.58101345,0.00014,2]
[331690639,1720645845967,-500.0,0.00013999,2]
[331690640,1720645845976,-472.3,0.00013999,2]
[331690641,1720645845989,-27.7,0.00013999,2]
[331690642,1720645845999,-273.47,0.00014,2]
[331690643,1720645846010,-1410.75,0.00014,2]
[331690644,1720645846021,-15741.80963135,0.00014,2]
[331690645,1720645846038,-3074.65,0.00014,2]
[331690646,1720645846090,-1267.71601122,0.00014,2]
[331690647,1720645846101,-617.95550003,0.00014,2]
[331690648,1720645846112,-28444.310442,0.00014,2]
[331690650,1720645846152,-1300.38413048,0.00014,2]
[331690651,1720645846269,-477.47355398,0.00014,2]
[331690652,1720645846960,-500.0,0.00013999,2]